fUST/lending_fUST_20240907
["ID","MTS","AMOUNT","RATE_DAILY","PERIOD"]
[337402955,1725640294139,-1091.102804,0.00021643,2]
[337402956,1725640294151,-500.0,0.00021643,2]
[337402957,1725640294160,-500.0,0.00021643,2]
[337402958,1725640294171,-500.0,0.00021643,2]
[337402959,1725640294181,-1091.102804,0.00021643,2]
[337402960,1725640294200,-744.4,0.00021643,2]
[337402961,1725640294212,-500.0,0.00021643,2]
[337402962,1725640294222,-822.811423,0.00021643,2]
[337402963,1725640294232,-1009.25,0.00021643,2]
[337402964,1725640294243,-500.0,0.00021643,2]
[337402965,1725640294254,-822.811423,0.00021643,2]
[337402966,1725640294264,-762.37,0.00021643,2]
[337402967,1725640294275,-683.128628,0.00021643,2]
[337402968,1725640294285,-560.08,0.00021643,2]
[337402969,1725640294296,-945.7,0.00021643,2]
[337402970,1725640294307,-500.0,0.00021643,2]
[337402971,1725640294317,-472.98750029,0.00021643,2]
[337402972,1725640294328,-558.5,0.00021643,2]
[337402973,1725640294338,-683.128628,0.00021643,2]
[337402974,1725640294348,-511.36437829,0.00021643,2]
[337402975,1725640294358,-151.0,0.00021643,2]
[337402976,1725640294368,-777.59,0.00021643,2]
[337402977,1725640294378,-33723.53,0.00021643,2]
[337402978,1725640294389,-500.0,0.00021643,2]
[337402979,1725640294401,-1397.71,0.00021643,2]
[337402980,1725640294411,-987.521377,0.00021643,2]
[337402981,1725640294421,-987.521377,0.00021643,2]
[337402982,1725640294431,-878.69,0.00021643,2]
[337402983,1725640294442,-151.0,0.00021643,2]
[337402984,1725640294452,-1056.1,0.00021643,2]
[337402985,1725640294462,-500.0,0.00021643,2]
[337402986,1725640294472,-500.0,0.00021643,2]
[337402987,1725640294483,-500.0,0.00021643,2]
[337402988,1725640294493,-500.0,0.00021643,2]
[337402989,1725640294503,-1114.04,0.00021643,2]
[337402990,1725640294512,-610.72,0.00021643,2]
[337402991,1725640294522,-500.0,0.00021643,2]
[337402992,1725640294532,-564.51406974,0.00021643,2]
[337402993,1725640294543,-922.608772,0.00021643,2]
[337402994,1725640294553,-500.0,0.00021643,2]
[337402995,1725640294563,-151.0,0.00021643,2]
[337402996,1725640294573,-500.0,0.00021643,2]
[337402997,1725640294583,-922.608772,0.00021643,2]
[337402998,1725640294593,-548.85,0.00021643,2]
[337402999,1725640294603,-614.18,0.00021643,2]
[337403000,1725640294613,-1172.77,0.00021643,2]
[337403001,1725640294623,-500.0,0.00021643,2]
[337403002,1725640294633,-500.0,0.00021643,2]
[337403003,1725640294643,-687.0,0.00021643,2]
[337403004,1725640294655,-500.0,0.00021643,2]
[337403005,1725640294666,-1755.48,0.00021643,2]
[337403006,1725640294676,-531.9,0.00021643,2]
[337403007,1725640294686,-151.0,0.00021643,2]
[337403008,1725640294697,-500.0,0.00021643,2]
[337403009,1725640294707,-500.0,0.00021643,2]
[337403010,1725640294717,-2286.81,0.00021643,2]
[337403011,1725640294728,-522.05,0.00021643,2]
[337403012,1725640294738,-151.0,0.00021643,2]
[337403013,1725640294748,-500.0,0.00021643,2]
[337403014,1725640294758,-500.0,0.00021643,2]
[337403015,1725640294768,-500.0,0.00021643,2]
[337403016,1725640294779,-20240.57,0.00021643,2]
[337403017,1725640294789,-151.0,0.00021643,2]
[337403018,1725640294798,-500.0,0.00021643,2]
[337403019,1725640294808,-500.0,0.00021643,2]
[337403020,1725640294818,-516.24069119,0.00021643,2]
[337403021,1725640294832,-151.0,0.00021643,2]
[337403022,1725640294842,-500.0,0.00021643,2]
[337403023,1725640294853,-500.0,0.00021643,2]
[337403024,1725640294863,-500.0,0.00021643,2]
[337403025,1725640294873,-151.0,0.00021643,2]
[337403026,1725640294885,-1691.2,0.00021643,2]
[337403027,1725640294898,-500.0,0.00021643,2]
[337403028,1725640294910,-500.0,0.00021643,2]
[337403029,1725640294922,-48097.67,0.00021643,2]
[337403030,1725640294933,-151.0,0.00021643,2]
[337403031,1725640294943,-1464.098608,0.00021643,2]
[337403032,1725640294955,-151.0,0.00021643,2]
[337403033,1725640294966,-1062.3,0.00021643,2]
[337403034,1725640294975,-500.0,0.00021643,2]
[337403035,1725640294986,-1464.098608,0.00021643,2]
[337403036,1725640294995,-1757.36,0.00021643,2]
[337403037,1725640295005,-151.0,0.00021643,2]
[337403038,1725640295016,-670.38,0.00021643,2]
[337403039,1725640295026,-1817.39,0.00021643,2]
[337403040,1725640295036,-500.0,0.00021643,2]
[337403041,1725640295046,-1278.16,0.00021643,2]
[337403042,1725640295056,-500.0,0.00021643,2]
[337403043,1725640295066,-1440.55,0.00021643,2]
[337403044,1725640295076,-500.0,0.00021643,2]
[337403045,1725640295089,-500.0,0.00021643,2]
[337403046,1725640295099,-1050.81,0.00021643,2]
[337403047,1725640295109,-1410.37,0.00021643,2]
[337403048,1725640295119,-766.12,0.00021643,2]
[337403049,1725640295131,-307.59366064,0.00021643,2]
[337403050,1725640295140,-2052.27,0.00021643,2]
[337403051,1725640295152,-843.01,0.00021643,2]
[337403052,1725640295164,-4146.25,0.00021643,2]
[337403053,1725640295174,-500.0,0.00021643,2]
[337403054,1725640295183,-151.0,0.00021643,2]
[337403055,1725640295193,-2102.07,0.00021643,2]
[337403056,1725640295203,-608.97,0.00021643,2]
[337403057,1725640295213,-500.0,0.00021643,2]
[337403058,1725640295223,-881.2,0.00021643,2]
[337403059,1725640295233,-1652.44,0.00021643,2]
[337403060,1725640295242,-500.0,0.00021643,2]
[337403061,1725640295252,-1872.26,0.00021643,2]
[337403062,1725640295262,-151.0,0.00021643,2]
[337403063,1725640295275,-500.0,0.00021643,2]
[337403064,1725640295285,-816.45,0.00021643,2]
[337403065,1725640295295,-526.4366339,0.00021643,2]
[337403066,1725640295305,-1401.93,0.00021643,2]
[337403067,1725640295315,-277.129906,0.00021643,2]
[337403068,1725640295325,-2544.68,0.00021643,2]
[337403069,1725640295335,-500.0,0.00021643,2]
[337403070,1725640295345,-923.74,0.00021643,2]
[337403071,1725640295355,-185.732543,0.00021643,2]
[337403072,1725640295364,-185.732543,0.00021643,2]
[337403073,1725640295374,-500.0,0.00021643,2]
[337403074,1725640295384,-500.0,0.00021643,2]
[337403075,1725640295394,-500.0,0.00021643,2]
[337403076,1725640295408,-823.91,0.00021643,2]
[337403077,1725640295418,-500.0,0.00021643,2]
[337403078,1725640295430,-500.0,0.00021643,2]
[337403079,1725640295440,-500.0,0.00021643,2]
[337403080,1725640295450,-588.31,0.00021643,2]
[337403081,1725640295460,-500.0,0.00021643,2]
[337403082,1725640295470,-500.0,0.00021643,2]
[337403083,1725640295480,-744.07,0.00021643,2]
[337403084,1725640295489,-500.0,0.00021643,2]
[337403085,1725640295500,-151.0,0.00021643,2]
[337403086,1725640295510,-177.56749803,0.00021643,2]
[337403087,1725640295521,-653.77,0.00021643,2]
[337403088,1725640295531,-6517.01,0.00021643,2]
[337403089,1725640295542,-749.51,0.00021643,2]
[337403090,1725640295555,-520.83,0.00021643,2]
[337403091,1725640295565,-620.83,0.00021643,2]
[337403092,1725640295575,-271.22484128,0.00021643,2]
[337403093,1725640295585,-845.97,0.00021643,2]
[337403094,1725640295595,-1046.134196,0.00021643,2]
[337403095,1725640295606,-751.04,0.00021643,2]
[337403096,1725640295616,-500.0,0.00021643,2]
[337403097,1725640295626,-1046.134196,0.00021643,2]
[337403098,1725640295635,-913.96,0.00021643,2]
[337403099,1725640295646,-500.0,0.00021643,2]
[337403100,1725640295660,-500.62228,0.00021643,2]
[337403101,1725640295673,-668.08,0.00021643,2]
[337403102,1725640295682,-500.0,0.00021643,2]
[337403103,1725640295692,-569.4,0.00021643,2]
[337403104,1725640295702,-2285.62,0.00021643,2]
[337403105,1725640295712,-500.62228,0.00021643,2]
[337403106,1725640295722,-151.0,0.00021643,2]
[337403107,1725640295732,-500.0,0.00021643,2]
[337403108,1725640295743,-1234.55,0.00021643,2]
[337403109,1725640295754,-681.99,0.00021643,2]
[337403110,1725640295766,-500.0,0.00021643,2]
[337403111,1725640295776,-635.29512375,0.00021643,2]
[337403112,1725640295787,-767.97,0.00021643,2]
[337403113,1725640295797,-1265.16,0.00021643,2]
[337403114,1725640295808,-680.01,0.00021643,2]
[337403115,1725640295821,-500.0,0.00021643,2]
[337403116,1725640295833,-1255.54,0.00021643,2]
[337403117,1725640295845,-151.0,0.00021643,2]
[337403118,1725640295856,-500.0,0.00021643,2]
[337403119,1725640295867,-885.07,0.00021643,2]
[337403120,1725640295877,-500.0,0.00021643,2]
[337403121,1725640295887,-619.93,0.00021643,2]
[337403122,1725640295901,-297.153808,0.00021643,2]
[337403123,1725640295912,-500.0,0.00021643,2]
[337403124,1725640295923,-500.0,0.00021643,2]
[337403125,1725640295933,-1085.778674,0.00021643,2]
[337403126,1725640296082,-500.0,0.00021643,2]
[337403127,1725640296097,-1640.89,0.00021643,2]
[337403128,1725640296107,-297.153808,0.00021643,2]
[337403129,1725640296116,-1539.9,0.00021643,2]
[337403130,1725640296128,-1085.778674,0.00021643,2]
[337403131,1725640296137,-500.0,0.00021643,2]
[337403132,1725640296148,-500.0,0.00021643,2]
[337403133,1725640296164,-500.0,0.00021643,2]
[337403134,1725640296176,-500.0,0.00021643,2]
[337403135,1725640296186,-500.0,0.00021643,2]
[337403136,1725640296195,-1397.23,0.00021643,2]
[337403137,1725640296205,-585.64,0.00021643,2]
[337403138,1725640296214,-48684.53,0.00021643,2]
[337403139,1725640296224,-500.0,0.00021643,2]
[337403141,1725640296233,-2805.256956,0.00021643,2]
[337403142,1725640296243,-790.55,0.00021643,2]
[337403143,1725640296253,-2805.256956,0.00021643,2]
[337403144,1725640296264,-500.0,0.00021643,2]
[337403145,1725640296273,-500.0,0.00021643,2]
[337403146,1725640296283,-500.0,0.00021643,2]
[337403147,1725640296293,-500.0,0.00021643,2]
[337403148,1725640296303,-866.79,0.00021643,2]
[337403149,1725640296312,-1476.42,0.00021643,2]
[337403150,1725640296322,-500.0,0.00021643,2]
[337403151,1725640296331,-184.0,0.000219,2]
[337403152,1725640296342,-507.0,0.000219,2]
[337403153,1725640296351,-508.0,0.000219,2]
[337403154,1725640296360,-151.0,0.00021917,2]
[337403155,1725640296370,-151.0,0.00021917,2]
[337403156,1725640296379,-151.0,0.00021917,2]
[337403157,1725640296389,-152.210055,0.00021917,2]
[337403158,1725640296400,-152.210055,0.00021917,2]
[337403159,1725640296410,-500.0,0.00021917,2]
[337403160,1725640296419,-500.0,0.00021917,2]
[337403161,1725640296429,-610.77,0.00021917,2]
[337403162,1725640296439,-500.0,0.00021917,2]
[337403163,1725640296449,-500.0,0.00021917,2]
[337403164,1725640296459,-813.65,0.00021917,2]
[337403165,1725640296468,-849.4,0.00021917,2]
[337403166,1725640296477,-500.0,0.00021917,2]
[337403167,1725640296487,-151.0,0.00021917,2]
[337403168,1725640296496,-151.0,0.00021917,2]
[337403169,1725640296506,-500.0,0.00021917,2]
[337403170,1725640296518,-500.0,0.00021917,2]
[337403171,1725640296529,-500.0,0.00021917,2]
[337403172,1725640296539,-500.0,0.00021917,2]
[337403173,1725640296549,-500.0,0.00021917,2]
[337403174,1725640296560,-500.0,0.00021917,2]
[337403175,1725640296569,-500.0,0.00021917,2]
[337403176,1725640296578,-513.25198422,0.00021917,2]
[337403177,1725640296587,-571.33,0.00021917,2]
[337403178,1725640296598,-742.91,0.00021917,2]
[337403179,1725640296608,-500.0,0.00021917,2]
[337403180,1725640296617,-500.0,0.00021917,2]
[337403181,1725640296626,-500.0,0.00021917,2]
[337403182,1725640296636,-500.0,0.00021917,2]
[337403183,1725640296645,-500.0,0.00021917,2]
[337403184,1725640296658,-500.0,0.00021917,2]
[337403185,1725640296667,-500.0,0.00021917,2]
[337403186,1725640296677,-500.0,0.00021917,2]
[337403187,1725640296687,-500.0,0.00021917,2]
[337403188,1725640296696,-500.0,0.00021917,2]
[337403189,1725640296705,-500.0,0.00021917,2]
[337403190,1725640296715,-500.0,0.00021917,2]
[337403191,1725640296725,-500.0,0.00021917,2]
[337403192,1725640296735,-500.0,0.00021917,2]
[337403193,1725640296747,-809.25,0.00021917,2]
[337403194,1725640296757,-999.72,0.00021917,2]
[337403195,1725640296767,-500.0,0.00021917,2]
[337403196,1725640296777,-926.43,0.00021917,2]
[337403197,1725640296786,-746.96,0.00021917,2]
[337403198,1725640296796,-579.79,0.00021917,2]
[337403199,1725640296805,-500.0,0.00021917,2]
[337403200,1725640296815,-741.65,0.00021917,2]
[337403201,1725640296824,-500.0,0.00021917,2]
[337403202,1725640296834,-554.41,0.00021917,2]
[337403203,1725640296843,-500.0,0.00021917,2]
[337403204,1725640296852,-589.04,0.00021917,2]
[337403205,1725640296863,-814.33,0.00021917,2]
[337403206,1725640296872,-500.0,0.00021917,2]
[337403207,1725640296882,-500.0,0.00021917,2]
[337403208,1725640296891,-514.5965296,0.00021917,2]
[337403209,1725640296903,-500.0,0.00021917,2]
[337403210,1725640296913,-500.0,0.00021917,2]
[337403211,1725640296941,-238.0867747,0.00021917,2]
[337403212,1725640296950,-500.0,0.00021917,2]
[337403213,1725640296960,-500.0,0.00021917,2]
[337403214,1725640296969,-500.0,0.00021917,2]
[337403215,1725640296978,-500.0,0.00021917,2]
[337403216,1725640296988,-500.0,0.00021917,2]
[337403217,1725640296997,-500.0,0.00021917,2]
[337403218,1725640297007,-500.0,0.00021917,2]
[337403219,1725640297017,-589.16,0.00021917,2]
[337403220,1725640297027,-500.0,0.00021917,2]
[337403221,1725640297036,-500.0,0.00021917,2]
[337403222,1725640297046,-500.0,0.00021917,2]
[337403223,1725640297055,-157.190556,0.00021917,2]
[337403224,1725640297065,-157.190556,0.00021917,2]
[337403225,1725640297075,-403.11049838,0.00021917,2]
[337403226,1725640297087,-987.27,0.00021917,2]
[337403227,1725640297098,-500.0,0.00021917,2]
[337403228,1725640297107,-795.13,0.00021917,2]
[337403229,1725640297117,-618.42,0.00021917,2]
[337403230,1725640297127,-500.0,0.00021917,2]
[337403231,1725640297137,-500.0,0.00021917,2]
[337403232,1725640297146,-651.04,0.00021917,2]
[337403233,1725640297158,-151.0,0.00021917,2]
[337403234,1725640297169,-821.38,0.00021917,2]
[337403235,1725640297179,-243.9685036,0.00021917,2]
[337403236,1725640297189,-592.44,0.00021917,2]
[337403237,1725640297199,-500.0,0.00021917,2]
[337403238,1725640297208,-1272.15,0.00021917,2]
[337403239,1725640297217,-1117.88,0.00021917,2]
[337403240,1725640297226,-151.0,0.00021917,2]
[337403241,1725640297236,-500.0,0.00021917,2]
[337403242,1725640297245,-151.0,0.00021917,2]
[337403243,1725640297255,-1080.6,0.00021917,2]
[337403244,1725640297265,-151.0,0.00021917,2]
[337403245,1725640297276,-1014.72,0.00021917,2]
[337403246,1725640297285,-151.0,0.00021917,2]
[337403247,1725640297295,-500.0,0.00021917,2]
[337403248,1725640297304,-500.0,0.00021917,2]
[337403249,1725640297314,-500.0,0.00021917,2]
[337403250,1725640297323,-500.0,0.00021917,2]
[337403251,1725640297332,-151.0,0.00021917,2]
[337403252,1725640297341,-500.0,0.00021917,2]
[337403253,1725640297350,-500.0,0.00021917,2]
[337403254,1725640297360,-500.0,0.00021917,2]
[337403255,1725640297370,-772.11,0.00021917,2]
[337403256,1725640297380,-500.0,0.00021917,2]
[337403257,1725640297390,-800.96598753,0.00021917,5]
[337403258,1725640297403,-814.17,0.00021917,2]
[337403259,1725640297414,-500.0,0.00021917,2]
[337403260,1725640297425,-500.0,0.00021917,2]
[337403261,1725640297435,-500.0,0.00021917,2]
[337403262,1725640297445,-500.0,0.00021917,2]
[337403263,1725640297455,-500.0,0.00021917,2]
[337403264,1725640297465,-500.0,0.00021917,2]
[337403265,1725640297474,-500.0,0.00021917,2]
[337403266,1725640297483,-500.0,0.00021917,2]
[337403267,1725640297493,-500.0,0.00021917,2]
[337403268,1725640297503,-500.0,0.00021917,2]
[337403269,1725640297512,-500.59,0.00021917,2]
[337403270,1725640297522,-500.0,0.00021917,2]
[337403271,1725640297532,-500.0,0.00021917,2]
[337403272,1725640297542,-500.0,0.00021917,2]
[337403273,1725640297551,-500.0,0.00021917,2]
[337403274,1725640297561,-1567.65,0.00021917,2]
[337403275,1725640297571,-500.0,0.00021917,2]
[337403276,1725640297580,-939.4,0.00021917,2]
[337403277,1725640297591,-500.0,0.00021917,2]
[337403278,1725640297601,-567.34,0.00021917,2]
[337403279,1725640297611,-500.0,0.00021917,2]
[337403280,1725640297621,-500.0,0.00021917,2]
[337403281,1725640297631,-500.0,0.00021917,2]
[337403282,1725640297644,-639.12,0.00021917,2]
[337403283,1725640297656,-500.0,0.00021917,2]
[337403284,1725640297666,-1180.54,0.00021917,2]
[337403285,1725640297676,-726.62,0.00021917,2]
[337403286,1725640297686,-500.0,0.00021917,2]
[337403287,1725640297695,-680.99,0.00021917,2]
[337403288,1725640297705,-968.59,0.00021917,2]
[337403289,1725640297715,-583.27924185,0.00021917,2]
[337403290,1725640297725,-231.165605,0.00021917,2]
[337403291,1725640297735,-500.0,0.00021917,2]
[337403292,1725640297745,-231.165605,0.00021917,2]
[337403293,1725640297754,-164.324719,0.00021917,2]
[337403294,1725640297765,-164.324719,0.00021917,2]
[337403295,1725640297775,-651.15,0.00021917,2]
[337403296,1725640297785,-521.44,0.00021917,2]
[337403297,1725640297795,-500.0,0.00021917,2]
[337403298,1725640297804,-500.0,0.00021917,2]
[337403299,1725640297814,-599.48,0.00021917,2]
[337403300,1725640297825,-500.0,0.00021917,2]
[337403301,1725640297938,-500.0,0.00021917,2]
[337403302,1725640297948,-500.0,0.00021917,2]
[337403303,1725640297959,-500.0,0.00021917,2]
[337403304,1725640297968,-1405.05,0.00021917,2]
[337403305,1725640297977,-500.0,0.00021917,2]
[337403306,1725640297988,-615.35,0.00021917,2]
[337403307,1725640297999,-500.0,0.00021917,2]
[337403308,1725640298008,-500.0,0.00021917,2]
[337403309,1725640298018,-500.0,0.00021917,2]
[337403310,1725640298028,-500.0,0.00021917,2]
[337403311,1725640298039,-606.55,0.00021917,2]
[337403312,1725640298048,-500.0,0.00021917,2]
[337403313,1725640298058,-500.0,0.00021917,2]
[337403314,1725640298067,-698.82,0.00021917,2]
[337403315,1725640298077,-500.0,0.00021917,2]
[337403316,1725640298087,-500.0,0.00021917,2]
[337403317,1725640298100,-952.82,0.00021917,2]
[337403318,1725640298109,-622.55,0.00021917,2]
[337403319,1725640298118,-500.0,0.00021917,2]
[337403320,1725640298128,-500.0,0.00021917,2]
[337403321,1725640298139,-500.0,0.00021917,2]
[337403322,1725640298150,-500.0,0.00021917,2]
[337403323,1725640298162,-979.78,0.00021917,2]
[337403324,1725640298172,-500.0,0.00021917,2]
[337403325,1725640298182,-500.0,0.00021917,2]
[337403326,1725640298191,-560.92191,0.00021917,2]
[337403327,1725640298201,-500.0,0.00021917,2]
[337403328,1725640298210,-560.92191,0.00021917,2]
[337403329,1725640298220,-500.0,0.00021917,2]
[337403330,1725640298229,-500.0,0.00021917,2]
[337403331,1725640298239,-500.0,0.00021917,2]
[337403332,1725640298248,-500.0,0.00021917,2]
[337403333,1725640298259,-418.963009,0.00021917,2]
[337403334,1725640298270,-819.45,0.00021917,2]
[337403335,1725640298279,-500.0,0.00021917,2]
[337403336,1725640298289,-645.35,0.00021917,2]
[337403337,1725640298298,-418.963009,0.00021917,2]
[337403338,1725640298307,-500.0,0.00021917,2]
[337403339,1725640298317,-500.0,0.00021917,2]
[337403340,1725640298326,-733.98,0.00021917,2]
[337403341,1725640298336,-175.642776,0.00021917,2]
[337403342,1725640298346,-612.76,0.00021917,2]
[337403343,1725640298355,-537.89,0.00021917,2]
[337403344,1725640298364,-500.0,0.00021917,2]
[337403345,1725640298373,-175.642776,0.00021917,2]
[337403346,1725640298383,-500.0,0.00021917,2]
[337403347,1725640298392,-500.0,0.00021917,2]
[337403348,1725640298405,-851.49,0.00021917,2]
[337403349,1725640298415,-325.09267607,0.00021917,2]
[337403350,1725640298424,-500.0,0.00021917,2]
[337403351,1725640298434,-894.83,0.00021917,2]
[337403352,1725640298443,-583.43,0.00021917,2]
[337403353,1725640298452,-1053.94,0.00021917,2]
[337403354,1725640298461,-500.0,0.00021917,2]
[337403355,1725640298471,-1098.68,0.00021917,2]
[337403356,1725640298480,-500.0,0.00021917,2]
[337403357,1725640298491,-1626.43,0.00021917,2]
[337403358,1725640298500,-500.0,0.00021917,2]
[337403359,1725640298510,-500.0,0.00021917,2]
[337403360,1725640298520,-500.0,0.00021917,2]
[337403361,1725640298530,-744.4,0.00021917,2]
[337403362,1725640298539,-500.0,0.00021917,2]
[337403363,1725640298549,-1009.25,0.00021917,2]
[337403364,1725640298558,-500.0,0.00021917,2]
[337403365,1725640298568,-762.37,0.00021917,2]
[337403366,1725640298577,-560.08,0.00021917,2]
[337403367,1725640298587,-945.7,0.00021917,2]
[337403368,1725640298597,-500.0,0.00021917,2]
[337403369,1725640298606,-558.5,0.00021917,2]
[337403370,1725640298616,-777.59,0.00021917,2]
[337403371,1725640298626,-33723.53,0.00021917,2]
[337403372,1725640298636,-500.0,0.00021917,2]
[337403373,1725640298646,-1397.71,0.00021917,2]
[337403374,1725640298658,-878.69,0.00021917,2]
[337403375,1725640298668,-1056.1,0.00021917,2]
[337403376,1725640298677,-500.0,0.00021917,2]
[337403377,1725640298686,-500.0,0.00021917,2]
[337403378,1725640298696,-561.93126478,0.00021917,2]
[337403379,1725640298706,-1114.04,0.00021917,2]
[337403380,1725640298716,-610.72,0.00021917,2]
[337403381,1725640298726,-500.0,0.00021917,2]
[337403382,1725640298736,-500.0,0.00021917,2]
[337403383,1725640298746,-548.85,0.00021917,2]
[337403384,1725640298755,-614.18,0.00021917,2]
[337403385,1725640298765,-1172.77,0.00021917,2]
[337403386,1725640298776,-500.0,0.00021917,2]
[337403387,1725640298787,-500.0,0.00021917,2]
[337403388,1725640298798,-687.0,0.00021917,2]
[337403389,1725640298808,-500.0,0.00021917,2]
[337403390,1725640298818,-1755.48,0.00021917,2]
[337403391,1725640298828,-531.9,0.00021917,2]
[337403392,1725640298838,-500.0,0.00021917,2]
[337403393,1725640298848,-500.0,0.00021917,2]
[337403394,1725640298858,-2286.81,0.00021917,2]
[337403395,1725640298868,-522.05,0.00021917,2]
[337403396,1725640298878,-500.0,0.00021917,2]
[337403397,1725640298888,-500.0,0.00021917,2]
[337403398,1725640298899,-500.0,0.00021917,2]
[337403399,1725640298911,-20240.57,0.00021917,2]
[337403400,1725640298928,-500.0,0.00021917,2]
[337403401,1725640298937,-151.0,0.00021917,2]
[337403402,1725640298948,-500.0,0.00021917,2]
[337403403,1725640298958,-500.0,0.00021917,2]
[337403404,1725640298967,-500.0,0.00021917,2]
[337403405,1725640298977,-531.15060596,0.00021917,2]
[337403406,1725640298986,-1691.2,0.00021917,2]
[337403407,1725640298996,-500.0,0.00021917,2]
[337403408,1725640299006,-500.0,0.00021917,2]
[337403409,1725640299015,-48097.67,0.00021917,2]
[337403410,1725640299025,-1464.098608,0.00021917,2]
[337403411,1725640299036,-151.0,0.00021917,2]
[337403412,1725640299046,-1062.3,0.00021917,2]
[337403413,1725640299057,-500.0,0.00021917,2]
[337403414,1725640299066,-151.0,0.00021917,2]
[337403415,1725640299076,-1464.098608,0.00021917,2]
[337403416,1725640299086,-670.38,0.00021917,2]
[337403417,1725640299100,-1757.36,0.00021917,2]
[337403418,1725640299110,-1817.39,0.00021917,2]
[337403419,1725640299120,-500.0,0.00021917,2]
[337403420,1725640299130,-1278.16,0.00021917,2]
[337403421,1725640299142,-500.0,0.00021917,2]
[337403422,1725640299159,-1440.55,0.00021917,2]
[337403423,1725640299170,-500.0,0.00021917,2]
[337403424,1725640299180,-500.0,0.00021917,2]
[337403425,1725640299189,-1050.81,0.00021917,2]
[337403426,1725640299199,-1410.37,0.00021917,2]
[337403427,1725640299211,-766.12,0.00021917,2]
[337403428,1725640299221,-2052.27,0.00021917,2]
[337403429,1725640299230,-843.01,0.00021917,2]
[337403430,1725640299240,-4146.25,0.00021917,2]
[337403431,1725640299249,-500.0,0.00021917,2]
[337403432,1725640299259,-151.0,0.00021917,2]
[337403433,1725640299269,-2102.07,0.00021917,2]
[337403434,1725640299279,-608.97,0.00021917,2]
[337403435,1725640299288,-500.0,0.00021917,2]
[337403436,1725640299298,-881.2,0.00021917,2]
[337403437,1725640299308,-1652.44,0.00021917,2]
[337403438,1725640299318,-500.0,0.00021917,2]
[337403439,1725640299328,-1872.26,0.00021917,2]
[337403440,1725640299338,-174.45346913,0.00021917,2]
[337403441,1725640299348,-151.0,0.00021917,2]
[337403442,1725640299358,-816.45,0.00021917,2]
[337403443,1725640299368,-1401.93,0.00021917,2]
[337403444,1725640299377,-2544.68,0.00021917,2]
[337403445,1725640299387,-383.99915805,0.00021917,2]
[337403446,1725640299397,-923.74,0.00021917,2]
[337403447,1725640299409,-185.732543,0.00021917,2]
[337403448,1725640299419,-185.732543,0.00021917,2]
[337403449,1725640299429,-500.0,0.00021917,2]
[337403450,1725640299440,-500.0,0.00021917,2]
[337403451,1725640299450,-500.0,0.00021917,2]
[337403452,1725640299460,-823.91,0.00021917,2]
[337403453,1725640299470,-500.0,0.00021917,2]
[337403454,1725640299479,-500.0,0.00021917,2]
[337403455,1725640299489,-588.31,0.00021917,2]